Cogmind - Beta 16.1 @@@ ROGUE MODE // 2026.04.11 @ 13:01:43 Player: Ace Result: Destroyed by G-34 Mercenary with Small Laser Performance ------------- Evolutions (0) 0 Regions Visited (2) 400 Robots Destroyed (9) 45 Value Destroyed (87) 87 Prototype IDs (0) 0 Alien Tech Used (0) 0 Bonus (0) 0 TOTAL SCORE: 532 Bonus ------- None Cogmind --------- Core Integrity 0/250 Matter 300/300 Energy 100/100 System Corruption 0% Temperature Cool (6) Movement Walking (190) Ox1 Location -10/Mines Parts ------- > --- POWER (1) -------- (None) > --- PROPULSION (2) --- Aluminum Leg > --- UTILITY (2) ------ Large Storage Unit Signal Interpreter > --- WEAPON (2) ------- (None) > --- INVENTORY (15) --- Light Ion Engine Light Ion Engine Aluminum Leg Aluminum Leg Large Storage Unit Seismic Detector Seismic Detector ECM Suite Tractor Beam Small Laser Salvaging Laser Datajack Mining Laser Peak State ------------ > --- POWER ------------ Light Ion Engine > --- PROPULSION ------- Aluminum Leg Aluminum Leg > --- UTILITY ---------- Small Storage Unit Improved Terrain Scanner > --- WEAPON ----------- Small Laser Small Laser > --- INVENTORY -------- Ion Engine Small Laser [Rating: 9] Favorites ----------- Power Light Ion Engine Engine Light Ion Engine Propulsion Aluminum Leg Leg Aluminum Leg Utility Large Storage Unit Device Seismic Detector Storage Large Storage Unit Processor Signal Interpreter Weapon Small Laser Energy Gun Small Laser Energy Cannon Beam Cannon Special Weapon Mining Laser Special Melee Weapon Datajack Build | -11 -10 -10 ------- Run | Yrd Mat Min Slots Evolved . | . . . Power . | . . . Propulsion . | . . . Utility . | . . . Weapon . | . . . Parts Attached 16 | 9 7 . Power 3 | 3 . . Engine 3 | 3 . . Core . | . . . Reactor . | . . . Propulsion 2 | 2 . . Treads . | . . . Leg 2 | 2 . . Wheel . | . . . Hover . | . . . Flight . | . . . Utility 5 | 2 3 . Device 2 | 1 1 . Storage 2 | 1 1 . Processor 1 | . 1 . Hackware . | . . . Protection . | . . . Artifact . | . . . Weapon 6 | 2 4 . Energy Gun 3 | 2 1 . Energy Cannon 1 | . 1 . Ballistic Gun . | . . . Ballistic Cannon . | . . . Launcher . | . . . Special Weapon 1 | . 1 . Impact Weapon . | . . . Slashing Weapon . | . . . Piercing Weapon . | . . . Special Melee Weapon 1 | . 1 . Unidentified Prototypes . | . . . Parts Lost 4 | . . 4 Power 1 | . . 1 Propulsion 1 | . . 1 Utility . | . . . Weapon 2 | . . 2 Highest Loss Streak 4 | . . 4 To Critical Strikes . | . . . Average Backups 9 | 4 11 13 Power 1 | 1 2 2 Propulsion 1 | . 1 2 Utility 3 | 1 4 5 Weapon 2 | 1 2 3 Tool/Special . | . . . Unused Backups 10 | . 1 9 Power 2 | . . 2 Propulsion 2 | . . 2 Utility 5 | . 1 4 Weapon 1 | . . 1 Tool/Special . | . . . Average Slot Usage (%) 98 | . 100 91 Engine 13 | . 14 12 Leg 27 | . 28 26 Device 5 | . 6 . Storage 14 | . 14 14 Processor 8 | . 7 14 Energy Gun 12 | . 12 12 Energy Cannon 12 | . 12 12 Special Weapon 1 | . 1 . Peak Build Rating 9 | 9 8 8 Average Rating 7 | 7 7 7 On Entrance 5 | . 7 8 Avg Prop Armor Cover (%) . | . . . Naked Turns . | . . . Heaviest Build 28 | 11 28 27 Greatest Support 20 | 20 20 20 Greatest Overweight (x) 1 | 1 1 1 Average Overweight (x) . | . . 1 Largest Inventory Capacity 15 | 8 15 15 Average Capacity 12 | 7 14 15 Most Carried 13 | 8 13 13 Average Carried 9 | 4 11 13 Final Capacity 15 | 8 15 15 Final Carried 13 | 8 13 13 Class Distribution -------------------- 100% | Mutant Dominant Class ---------------- Mutant | -10/Materials Mutant | -10/Mines Resources | -11 -10 -10 ----------- Run | Yrd Mat Min Matter Collected 380 | 290 90 . Remotely . | . . . Salvage Created 218 | 180 38 . Parts 20 | 18 2 . Haulers Intercepted . | . . . Recyclers Shooed 1 | . 1 . Parts Field Recycled . | . . . Retrieved Matter . | . . . Parts Self-Destructed . | . . . Prevented . | . . . Parts Restored . | . . . Kills | -11 -10 -10 ------- Run | Yrd Mat Min Combat Hostiles Destroyed 1 | . 1 . Cannons 1 | . 1 . Classes Destroyed 4 | 3 1 . Worker 2 | 2 . . Tunneler 5 | 5 . . Recycler 1 | 1 . . Grunt 1 | . 1 . Best Kill Streak 3 | 3 1 . Combat Bots Only 1 | . 1 . Max Kills in Single Turn 1 | 1 1 . Gunslinging . | . . . Exploded . | . . . Melee . | . . . Uniques/NPCs Destroyed . | . . . Combat | -11 -10 -10 -------- Run | Yrd Mat Min Hostile Shots Fired 42 | . 10 32 Missed 14 | . 3 11 Hits 28 | . 7 21 Melee 2 | . . 2 Projectile 26 | . 7 19 AOE 9 | . . 9 Critical Strikes 1 | . 1 . Damage Taken 616 | . 93 523 Core 251 | . 28 223 Absorbed by Shields . | . . . Core Remaining (%) 100 | 100 . . Volleys Fired 28 | 10 18 . Largest 2 | 2 2 . Hottest 100 | 80 100 . Shots Fired 46 | 20 26 . Gun 29 | 20 9 . Cannon 7 | . 7 . Launcher . | . . . Special 10 | . 10 . Kinetic . | . . . Thermal 46 | 20 26 . Explosive . | . . . Electromagnetic . | . . . Robot Hit Streak 4 | 4 4 . Robot Miss Streak 2 | 2 2 . Penetration Max . | . . . Secondary Targets . | . . . Shots Hit Robots 18 | 10 8 . Core Hits 10 | 9 1 . Critical Kills . | . . . Critical Parts Destroyed . | . . . Critical Strikes . | . . . Melee Attacks 1 | . 1 . Impact . | . . . Slashing . | . . . Piercing . | . . . Sneak Attacks 1 | . 1 . Combat Hostiles . | . . . Follow-up Attacks . | . . . Damage Inflicted 212 | 108 104 . Guns 142 | 108 34 . Cannons 70 | . 70 . Explosions . | . . . Melee . | . . . Ramming . | . . . Kinetic . | . . . Thermal 212 | 108 104 . Explosive . | . . . Electromagnetic . | . . . Impact . | . . . Slashing . | . . . Piercing . | . . . Highest Corruption . | . . . Average Corruption . | . . . Corruption Purged . | . . . Corruption Blocked . | . . . Overload Shots . | . . . Overflow Damage . | . . . Projectiles . | . . . Explosions . | . . . Melee . | . . . Knockbacks . | . . . Impact . | . . . Kinetic . | . . . Secondary . | . . . Self-Inflicted Damage . | . . . Shots . | . . . Rammed . | . . . Targets Rammed . | . . . Kicked . | . . . Crushed . | . . . Highest Temperature 160 | 56 160 . Average Temperature 44 | 16 54 . Received Heat Transfer 156 | . 72 84 Siege Activations . | . . . Martial Activations . | . . . Shielding Activations . | . . . Robots Disrupted . | . . . Combat Hostiles . | . . . Robots Corrupted . | . . . Combat Hostiles . | . . . Parts Fried . | . . . Impact Corruptions . | . . . Robots Melted . | . . . Combat Hostiles . | . . . Parts Melted 1 | 1 . . Heat Transferred 473 | 250 223 . Parts Sabotaged . | . . . Parts Stolen . | . . . Parts Stripped . | . . . Power Chain Reactions . | . . . Alert | -11 -10 -10 ------- Run | Yrd Mat Min Maximum Alert Level . | . . . Low Security (%) 100 | 100 100 100 Level 1 . | . . . Level 2 . | . . . Level 3 . | . . . Level 4 . | . . . Level 5 . | . . . High Security . | . . . Max Security . | . . . Peak Influence 35 | 5 35 . Initial . | . . . Average 3 | 2 3 . Influence Increases 94 | 40 54 . Destroy 0b10 Robot/C 20 | . 20 . Destroy 0b10 Robot/NC 40 | 40 . . Destroy Leader 10 | . 10 . Disable Machine 15 | . 15 . Destroy Structure 9 | . 9 . Influence Decreases 94 | 40 54 . Time Decay 94 | 40 54 . Squads Dispatched 3 | . 3 . Investigation 1 | . 1 . Extermination . | . . . Reinforcement 2 | . 2 . Assault . | . . . Garrison . | . . . Intercept . | . . . Searches Triggered . | . . . Construction Impeded . | . . . Haulers Reinforced . | . . . Active Scanning Responses . | . . . Cargo Convoy Interrupts . | . . . Stealth | -11 -10 -10 --------- Run | Yrd Mat Min Distress Signals . | . . . Communications Jammed . | . . . Distress Signals . | . . . Times Spotted 30 | . 4 26 Peak Tracking Total 21 | . 3 21 Tactical Retreats 2 | . . 2 Traps | -11 -10 -10 ------- Run | Yrd Mat Min Traps Triggered . | . . . Indirectly . | . . . Trap Hack Attempts . | . . . Triggered . | . . . Disarmed . | . . . Reprogrammed . | . . . Reused . | . . . Traps Extracted . | . . . Installed . | . . . Triggered . | . . . Machines | -11 -10 -10 ---------- Run | Yrd Mat Min Machines Disabled 1 | . 1 . Max in Single Turn 1 | . 1 . Machines Repaired . | . . . Machines Dismantled . | . . . Machines Sabotaged . | . . . Overloaded Fab Kills . | . . . Hacking | -11 -10 -10 --------- Run | Yrd Mat Min Machines Accessed 2 | . 2 . Terminals 2 | . 2 . Fabricators . | . . . Repair Stations . | . . . Recycling Units . | . . . Scanalyzers . | . . . Garrison Access . | . . . Total Hacks 5 | . 5 . Successful 1 | . 1 . Failed 4 | . 4 . Catastrophic 2 | . 2 . Database Lockouts . | . . . Manual 2 | . 2 . Terminals 5 | . 5 . Fabricators . | . . . Repair Stations . | . . . Recycling Units . | . . . Scanalyzers . | . . . Garrison Access . | . . . Terminal Hacks 1 | . 1 . Alert Level 1 | . 1 . Fabricator Hacks . | . . . Repair Station Hacks . | . . . Recycling Unit Hacks . | . . . Scanalyzer . | . . . Garrison Access Hacks . | . . . Unauthorized Hacks . | . . . Terminals . | . . . Fabricators . | . . . Repair Stations . | . . . Recycling Units . | . . . Scanalyzers . | . . . Garrison Access . | . . . Data Cores Recovered . | . . . Used . | . . . Hacking Detections 2 | . 2 . Full Trace Events . | . . . Feedback Events . | . . . Feedback Blocked . | . . . Robot Schematics Acquired . | . . . Robots Built . | . . . Authchips . | . . . Time . | . . . Total Robot Build Rating . | . . . Part Schematics Acquired . | . . . Parts Built . | . . . Authchips . | . . . Time . | . . . Total Part Build Rating . | . . . Part Studies Acquired . | . . . Parts Repaired . | . . . Time . | . . . Parts Recycled . | . . . Recycled Matter . | . . . Retrieved Matter . | . . . Retrieved Components . | . . . Parts Scanalyzed . | . . . Part Schematics Acquired . | . . . Parts Damaged . | . . . Bothacking | -11 -10 -10 ------------ Run | Yrd Mat Min Used RIF Installer . | . . . Robots Hacked 1 | . 1 . Non-combat 1 | . 1 . Combat . | . . . Robot Hacks Applied 1 | . 1 . parse_system 1 | . 1 . Relay Couplers Released . | . . . Fabnet Peak Effective % . | . . . Robots Rewired . | . . . Allies Hacked . | . . . Hacks Repelled . | . . . Allies | -11 -10 -10 -------- Run | Yrd Mat Min Total Allies . | . . . Largest Group . | . . . Highest-Rated Group . | . . . Highest-Rated Ally . | . . . Total Orders . | . . . Ally Attacks . | . . . Total Damage . | . . . Kills . | . . . Allies Corrupted . | . . . Allies Melted . | . . . Intel | -11 -10 -10 ------- Run | Yrd Mat Min Active Infowar (turns) 348 | 124 224 . Terrain 124 | 124 . . Seismic 224 | . 224 . Robot Analysis Total . | . . . Derelict Logs Recovered . | . . . Drone Launches . | . . . Drone Recoveries . | . . . Exploration | -11 -10 -10 ------------- Run | Yrd Mat Min Turns Passed 779 | 228 498 53 Spaces Moved 403 | 148 227 28 Core 9 | 9 . . Treads . | . . . Legs 394 | 139 227 28 Wheels . | . . . Hover . | . . . Flight . | . . . Fastest Speed 50 | 50 120 190 Average Speed 157 | 117 179 190 Slowest Speed 190 | 120 190 190 Overloaded Moves . | . . . Propulsion Burnouts . | . . . Robots Hopped . | . . . Potential Cave-ins . | . . . Cave-ins Triggered . | . . . Exploration Rate (%) 20 | 5 41 14 Regions Visited 2 Branch Regions 1 Pre-discovered Areas . | . . . Known Exits Taken 1 | . 1 . Unknown Exits Taken 1 | 1 . . Scrap Searched . | . . . Spaces Dug 9 | . 9 . Terrain Destroyed 9 | . 9 . Melee . | . . . Projectile 9 | . 9 . AOE . | . . . Terrain Rammed . | . . . Walls Destroyed . | . . . Machines Disabled . | . . . Actions | -11 -10 -10 --------- Run | Yrd Mat Min Total 478 | 179 271 28 Wait . | . . . Move 401 | 147 226 28 Hop . | . . . Pick Up 20 | 10 10 . Fast Attach 7 | 6 1 . Attach 3 | 1 2 . Detach 1 | 1 . . Swap 10 | 2 8 . Drop 7 | 2 5 . Fire 28 | 10 18 . Melee 1 | . 1 . Ram . | . . . Kick . | . . . Crush . | . . . Escape Stasis . | . . . Rewire . | . . . Trap . | . . . Miscellaneous . | . . . Route ------- -11/Scrapyard -10/Materials (discovered 2 exits: *Mat / *Min) -10/Mines History --------- Turn | Location | Event 12 | -11/Scrapyard | Discovered new exit (range 15) 229 | -11/Scrapyard | Entered Materials 230 | -10/Materials | Met a group of wandering Federalists 326 | -10/Materials | Build established: Mutant 449 | -10/Materials | Discovered new exit (range 16) 479 | -10/Materials | Identified exit to Materials 650 | -10/Materials | Discovered new exit (range 12) 669 | -10/Materials | Identified exit to Mines 727 | -10/Materials | Entered Mines 728 | -10/Mines | Assembled infested the area 734 | -10/Mines | Received a Rocket Launcher from a helpful Derelict 777 | -10/Mines | Core integrity fell below 50% 779 | -10/Mines | Core integrity fell below 20% 780 | -10/Mines | Destroyed by G-34 Mercenary with Small Laser Last Messages --------------- 00732_ 62-YXM(g): "Need to get rid of a swarm? Done. Need a big hole in the wall? Done." 00733_ 62-YXM(g): "Need a small hole in the wall? Leave that to the mining laser wimps, I say!" 00734_ 62-YXM(g): "Would you like a rocket launcher? I know I would if I were you, so I'm going to lend you mine." 00734_ 62-YXM(g) slips back into the shadows. 00742_ Knocked back. 00749_ G-34 Mercenary knocked back. [Achievement: Slippery One] 00770_ C-45 Heavy ARC bursts open, deploying its payload. 00770_ D-53 Grenadier unfolds itself. 00772_ Beam Cannon destroyed. 00772_ Lgt. Ion Engine destroyed. 00773_ Sml. Laser destroyed. 00773_ Aluminum Leg destroyed. 00776_ The unstable cave ceiling collapses. Map ----- +----------------------------------------------------+ | ?????????????????????????????????????????????? | | ?????????????????????????????????????????????? | | " ?????????????????????????????????????????????? | | ?????????????????????????????????????????????? | | #?????????????????????????????????????????????? | | #?????????????????????????????????????????????? | | #?????????????????????????????????????????????? | | #?????????????????????????????????????????????? | | # #?????????????????????????????????????????????? | | # #?????????####????????????????????????????????? | | # #????????# ##???????????????????????????????? | | # #???????# #???????????????????????????????? | | # #?????## ######??????????????????????????? | | # ##???## $ ??????????????????????????? | | #???# ????????????????????????????? | | ##### #?????????????????????????????????? | | ] #????????####????????????????????????? | | ####### ##????##### ####?????????????????????? | | #?????# #?????# # # ##????????????????????? | | #?????# #????## # #????????????????????? | | #?????# #????# ##????????????????????? | | #?????# ####### #????????????????????? | | ##?????# #????????????????????? | | #???????# d #????????????????????? | | ????????######### d #????????????????????? | | ????????????????### % @ #????????????????????? | | ??????????????????##gg #????????????????????? | | ???????????????? # ???????????????????? | | ??????????????# ## ### # # ?????????????????? | | ?????????????????# ??######## #???????????????? | | ?????????????????#??????????? ##???????????????? | | ?????????????????????????????? #????????????????? | | ???????????????????????????????##????????????????? | | ?????????????????????????????????????????????????? | | ?????????????????????????????????????????????????? | | ?????????????????????????????????????????????????? | | ?????????????????????????????????????????????????? | | ?????????????????????????????????????????????????? | | ?????????????????????????????????????????????????? | | ?????????????????????????????????????????????????? | | ?????????????????????????????????????????????????? | | ?????????????????????????????????????????????????? | | ?????????????????????????????????????????????????? | | ?????????????????????????????????????????????????? | | ?????????????????????????????????????????????????? | | ?????????????????????????????????????????????????? | | ?????????????????????????????????????????????????? | | ?????????????????????????????????????????????????? | | ?????????????????????????????????????????????????? | | | +----------------------------------------------------+ Best States ------------- Heat Dissipation 25 Energy Generation 10 Energy Capacity 125 Matter Stores 300 Matter Capacity 300 Sight Range 16 Terrain Scan Range 16 Terrain Scan Density 10 Evasion (%) 55 Item Schematics ----------------- None Robot Schematics ------------------ None Fabricated ------------ Nothing Repaired ---------- Nothing Studied --------- None Alien Tech Used ----------------- None Achievements -------------- Hunted Slippery One Challenges ------------ None Game ------ Seed TerrainLightShovel Manual? 0 Play Time 00:13:39 Cumulative 16.0 hours Start 2026.04.11 @ 12:48:25 End 2026.04.11 @ 13:01:43 Sessions 1 Manual Loads 0 Difficulty Rogue Special Mode None Game No. 12 Rogue 8 Adventurer 4 Explorer 0 Win Type - Total 0 Types 0/0/0/0/0/0/0/0/0/0 Lore% 8 Gallery% 13 Achievement% 12 Wizard Run 0 Options --------- Layout 1 ASCII 0 Keyboard 0 Movement Arrows Keybinds 0 Fullscreen 2 Font 24/Smallcaps Map View 50x35 Zoom Use 0% Tactical HUD 1 Map Filters NONE Filters NONE Steam 1 RUN: 81769d15-e8bb-4d3c-ab71-508133dd0967